bitfinex-derivatives/quotes_BTCF0:USTF0_20250504
["timestamp","ask_amount","ask_price","bid_price","bid_amount"]
[1746365267255,0.2754134,95364.0,95363.0,0.98733956]
[1746365269059,0.0657,95364.0,95363.0,0.98733956]
[1746365269455,0.0353,95364.0,95363.0,0.98733956]
[1746365269652,0.0353,95364.0,95363.0,1.37813956]
[1746365269858,0.0353,95364.0,95363.0,1.40993956]
[1746365270053,0.0353,95364.0,95363.0,1.44073956]
[1746365270254,0.002,95364.0,95363.0,0.9132713]
[1746365277963,0.002,95364.0,95363.0,2.4132713]
[1746365281262,0.0326,95364.0,95363.0,2.4132713]
[1746365281767,0.0326,95364.0,95363.0,2.3832713]
[1746365282768,0.0326,95364.0,95363.0,2.4432713]
[1746365282970,0.0326,95364.0,95363.0,2.70393426]
[1746365284870,0.2096953,95372.0,95371.0,0.2096968]
[1746365285073,0.0323,95374.0,95373.0,0.2096924]
[1746365285265,0.2419902,95374.0,95373.0,0.3596924]
[1746365286071,0.2419902,95374.0,95373.0,0.4776924]
[1746365286671,0.2419902,95374.0,95373.0,0.268]
[1746365286867,0.2429902,95374.0,95373.0,0.269]
[1746365287072,0.3129902,95374.0,95373.0,0.269]
[1746365287571,0.3139902,95374.0,95373.0,0.27]
[1746365288071,0.3472902,95374.0,95373.0,0.12]
[1746365292366,0.3772902,95374.0,95373.0,0.12]
[1746365292566,0.3472902,95374.0,95373.0,0.12]
[1746365299581,0.2772902,95374.0,95373.0,0.12]
[1746365300582,0.0676,95374.0,95373.0,0.12]
[1746365300776,0.0353,95374.0,95373.0,0.4796924]
[1746365301272,0.0353,95374.0,95373.0,0.30858771]
[1746365301680,0.0353,95374.0,95373.0,0.37278771]
[1746365302182,0.0353,95374.0,95373.0,0.49078771]
[1746365303581,0.002,95374.0,95373.0,0.49078771]
[1746365307780,0.002,95374.0,95373.0,0.50113775]
[1746365307982,0.002,95374.0,95373.0,0.52113775]
[1746365308188,0.002,95374.0,95373.0,0.50078771]
[1746365308782,0.0627,95385.0,95384.0,0.2096682]
[1746365308988,0.5704653,95386.0,95385.0,0.209666]
[1746365309190,0.5704653,95386.0,95385.0,0.467666]
[1746365309691,0.2096653,95386.0,95385.0,0.467666]
[1746365310188,0.0524137,95390.0,95385.0,0.467666]
[1746365310189,0.209639,95398.0,95397.0,0.209635]
[1746365310488,0.242639,95398.0,95397.0,0.249635]
[1746365311187,0.209639,95398.0,95397.0,0.367635]
[1746365311385,0.033,95403.0,95402.0,0.2096287]
[1746365311581,0.2426277,95403.0,95402.0,0.2096287]
[1746365311782,0.2426277,95403.0,95402.0,0.3396287]
[1746365312187,0.001,95406.0,95402.0,0.3004067]
[1746365312492,0.001,95406.0,95405.0,0.2096221]
[1746365312693,0.001,95406.0,95405.0,0.3396221]
[1746365313291,0.001,95406.0,95405.0,0.4576221]
[1746365313801,0.001,95406.0,95405.0,1.9576221]
[1746365314002,0.004,95406.0,95405.0,1.9586221]
[1746365314204,0.00157264,95418.0,95417.0,0.2095957]
[1746365314803,0.00157264,95418.0,95417.0,0.3495957]
[1746365315109,0.00157264,95418.0,95417.0,0.4983957]
[1746365315601,0.0323,95421.0,95420.0,0.2095891]
[1746365315806,0.0323,95421.0,95420.0,0.3395891]
[1746365316204,0.0323,95421.0,95420.0,0.4575891]
[1746365317904,0.0373,95421.0,95420.0,0.4585891]
[1746365318198,0.0443,95421.0,95420.0,0.4585891]
[1746365318598,0.2538869,95421.0,95420.0,0.4585891]
[1746365319692,0.012,95421.0,95420.0,0.4785891]
[1746365319904,0.012,95421.0,95420.0,0.4585891]
[1746365322101,0.0746,95421.0,95420.0,0.4585891]
[1746365327911,0.2841869,95421.0,95420.0,0.4585891]
[1746365344514,0.2841869,95421.0,95420.0,0.31276]
[1746365345111,0.2841869,95421.0,95420.0,0.249]
[1746365345310,0.2841869,95421.0,95420.0,0.31276]
[1746365346019,0.2841869,95421.0,95420.0,0.52648571]
[1746365346321,0.2841869,95421.0,95420.0,0.55928571]
[1746365346820,0.2941869,95421.0,95420.0,0.55928571]
[1746365350224,0.2941869,95421.0,95420.0,0.76887481]
[1746365350417,0.2941869,95421.0,95420.0,0.5551491]
[1746365351918,0.0015,95430.0,95426.0,0.0523939]
[1746365352122,0.2110689,95430.0,95429.0,0.2095694]
[1746365352424,0.0015,95430.0,95429.0,0.2095694]
[1746365353019,0.0082,95430.0,95429.0,0.2095694]
[1746365353220,0.0082,95430.0,95429.0,0.3275694]
[1746365353411,0.0152,95430.0,95429.0,0.3285694]
[1746365354330,0.0152,95430.0,95429.0,0.3928694]
[1746365354718,0.014,95430.0,95429.0,0.3938694]
[1746365357433,0.014,95430.0,95429.0,0.4038694]
[1746365358432,0.2235672,95430.0,95429.0,0.4038694]
[1746365359226,0.014,95430.0,95429.0,0.4038694]
[1746365359426,0.0303,95441.0,95435.0,0.2095562]
[1746365359626,0.2105546,95436.0,95435.0,0.2095562]
[1746365359825,0.2105546,95436.0,95435.0,0.3073562]
[1746365360032,0.2105546,95436.0,95435.0,0.2741562]
[1746365360232,0.2105546,95436.0,95435.0,0.3590562]
[1746365360431,0.2105546,95436.0,95435.0,0.3600562]
[1746365360634,0.2175546,95436.0,95435.0,0.3600562]
[1746365360926,0.2225546,95436.0,95435.0,0.3610562]
[1746365362329,0.2225546,95436.0,95435.0,0.3930562]
[1746365365328,0.013,95436.0,95435.0,0.3930562]
[1746365365631,0.222554,95436.0,95435.0,0.3930562]
[1746365370042,0.0449,95436.0,95435.0,0.3930562]
[1746365370236,0.4131821,95448.0,95442.0,0.2095408]
[1746365370540,0.052383,95446.0,95442.0,0.2095408]
[1746365370742,0.21111092,95443.0,95442.0,0.3035408]
[1746365371241,0.21111092,95443.0,95442.0,0.4215408]
[1746365371739,0.00857232,95443.0,95442.0,0.4225408]
[1746365371940,0.21811092,95443.0,95442.0,0.4225408]
[1746365372934,0.22111092,95443.0,95442.0,0.4225408]
[1746365373741,0.22111092,95443.0,95442.0,0.1813]
[1746365374443,0.22111092,95443.0,95442.0,0.3908408]
[1746365375641,0.01157232,95443.0,95442.0,0.3908408]
[1746365375939,0.2095058,95458.0,95446.0,0.0523826]
[1746365376134,0.2397057,95459.0,95458.0,0.2095036]
[1746365377038,0.2397057,95459.0,95458.0,0.3275036]
[1746365377640,0.2467057,95459.0,95458.0,0.3913036]
[1746365378035,0.2557057,95459.0,95458.0,0.3923036]
[1746365378546,0.2557057,95459.0,95458.0,0.1828]
[1746365384144,0.016,95459.0,95458.0,0.5223057]
[1746365389157,0.2255035,95459.0,95458.0,0.24652]
[1746365389348,0.2255035,95459.0,95458.0,0.21522]
[1746365390045,0.2895035,95459.0,95458.0,0.21522]
[1746365390742,0.2855035,95459.0,95458.0,0.21522]
[1746365391650,0.2855035,95459.0,95458.0,0.21422]
[1746365391953,0.2805035,95459.0,95458.0,0.21422]
[1746365392754,0.2805035,95459.0,95458.0,0.4237257]
[1746365393555,0.2805035,95459.0,95458.0,0.21422]
[1746365394660,0.2805035,95459.0,95458.0,0.4237257]
[1746365405673,0.2805035,95459.0,95458.0,0.24426672]
[1746365406075,0.2805035,95459.0,95458.0,0.36226672]
[1746365406263,0.0395,95459.0,95458.0,0.36226672]
[1746365406568,0.0395,95459.0,95458.0,0.49226672]
[1746365408661,0.0395,95459.0,95458.0,0.36226672]
[1746365409467,0.0395,95459.0,95458.0,0.118]
[1746365409667,0.2690035,95459.0,95458.0,0.18172]
[1746365410371,0.2690035,95459.0,95458.0,0.118]
[1746365410874,0.2690035,95459.0,95458.0,0.18172]
[1746365411166,0.2690035,95459.0,95458.0,0.118]
[1746365411365,0.4037595,95459.0,95458.0,0.118]
[1746365412158,0.194256,95459.0,95448.0,0.27744571]
[1746365412472,0.2095255,95449.0,95448.0,0.40744571]
[1746365413168,0.2095255,95449.0,95448.0,0.52544571]
[1746365413371,0.2712255,95449.0,95448.0,0.33172571]
[1746365413572,0.3012255,95449.0,95448.0,0.33172571]
[1746365413968,0.3022255,95449.0,95448.0,0.33172571]
[1746365414165,0.3042255,95449.0,95448.0,0.33172571]
[1746365416177,0.3042255,95449.0,95448.0,0.118]
[1746365417878,0.003,95449.0,95448.0,0.4175277]
[1746365418175,0.0351,95449.0,95448.0,0.3275277]
[1746365418377,0.0351,95449.0,95448.0,0.3605277]
[1746365420874,0.0351,95449.0,95448.0,0.3905277]
[1746365421080,0.0351,95449.0,95448.0,0.3705277]
[1746365421381,0.0351,95449.0,95448.0,0.3605277]
[1746365421686,0.2446255,95449.0,95448.0,0.3605277]
[1746365424885,0.0351,95449.0,95448.0,0.3605277]
[1746365425083,0.0351,95449.0,95448.0,0.5005277]
[1746365425381,0.0351,95449.0,95448.0,0.3905277]
[1746365427084,0.0351,95449.0,95448.0,1.8905277]
[1746365427287,0.2095055,95459.0,95458.0,0.2095013]
[1746365427487,0.2095055,95459.0,95458.0,0.2395013]
[1746365428171,0.2095055,95459.0,95458.0,0.3575013]
[1746365428378,0.2135055,95459.0,95458.0,0.3575013]
[1746365428777,0.2135035,95459.0,95458.0,0.3575013]
[1746365428979,0.2165035,95459.0,95458.0,0.3575013]
[1746365434790,0.2495035,95459.0,95458.0,0.3575013]
[1746365435482,0.2495035,95459.0,95458.0,0.4235013]
[1746365439897,0.2495035,95459.0,95458.0,0.58359068]
[1746365443802,0.2495035,95459.0,95458.0,0.4235013]
[1746365444102,0.007,95459.0,95458.0,0.4235013]
[1746365445902,0.2165035,95459.0,95458.0,0.4235013]
[1746365446093,0.2483035,95459.0,95458.0,0.4235013]
[1746365450008,0.2483035,95459.0,95458.0,0.148]
[1746365450210,0.2483035,95459.0,95458.0,0.118]
[1746365450909,0.2808035,95459.0,95458.0,0.118]
[1746365451507,0.2808035,95459.0,95458.0,0.3275057]
[1746365452009,0.2808035,95459.0,95458.0,0.118]
[1746365452403,0.3008035,95459.0,95458.0,0.118]
[1746365452703,0.2808035,95459.0,95458.0,0.118]
[1746365453517,0.2808035,95459.0,95458.0,0.27817275]
[1746365457306,0.3208035,95459.0,95458.0,0.118]
[1746365458207,0.2095123,95455.0,95454.0,0.27736571]
[1746365459102,0.2729123,95455.0,95454.0,0.39536571]
[1746365459698,0.2769123,95455.0,95454.0,0.39536571]
[1746365461113,0.29724237,95455.0,95454.0,0.33172571]
[1746365461316,0.30724237,95455.0,95454.0,0.21372571]
[1746365464116,0.53724237,95455.0,95454.0,0.16023324]
[1746365465099,0.42524237,95455.0,95454.0,0.16023324]
[1746365465912,0.94840237,95455.0,95454.0,0.16023324]
[1746365468118,0.2095189,95452.0,95451.0,0.16023324]
[1746365468321,0.6503189,95452.0,95451.0,0.16023324]
[1746365468915,0.9750829,95452.0,95451.0,0.16023324]
[1746365469107,0.8534829,95452.0,95451.0,0.16023324]
[1746365469312,0.8544829,95452.0,95451.0,0.16023324]
[1746365469807,1.0944829,95452.0,95451.0,0.16023324]
[1746365470004,1.3144829,95452.0,95451.0,0.16023324]
[1746365470204,1.4324829,95452.0,95451.0,0.00093324]
[1746365471319,1.4304829,95452.0,95451.0,0.00093324]
[1746365471613,2.5098829,95452.0,95451.0,4e-08]
[1746365471816,2.5108829,95452.0,95451.0,4e-08]
[1746365472017,0.0523818,95449.0,95435.0,0.21372571]
[1746365472217,0.3608,95436.0,95435.0,0.21372571]
[1746365472408,0.5708,95436.0,95435.0,0.21372571]
[1746365472610,0.88513801,95436.0,95435.0,0.21372571]
[1746365473519,0.95133801,95436.0,95435.0,0.21372571]
[1746365477121,0.2095782,95425.0,95424.0,0.0633]
[1746365477314,0.2295782,95425.0,95424.0,0.0633]
[1746365478012,0.2609782,95425.0,95424.0,0.0633]
[1746365478211,0.2609782,95425.0,95424.0,0.1813]
[1746365478529,0.6217782,95425.0,95424.0,0.1853]
[1746365480425,0.6317782,95425.0,95424.0,0.1853]
[1746365480625,0.6217782,95425.0,95424.0,0.1853]
[1746365485330,0.6217782,95425.0,95424.0,0.02939471]
[1746365485723,0.6217782,95425.0,95424.0,0.16939471]
[1746365486033,0.6317782,95425.0,95424.0,0.02939471]
[1746365487821,0.6748909,95425.0,95424.0,0.02939471]
[1746365489435,0.6642782,95425.0,95424.0,0.02939471]
[1746365490632,0.67483208,95425.0,95424.0,0.02939471]
[1746365490837,0.6642782,95425.0,95424.0,0.02939471]
[1746365491134,1.02933503,95425.0,95424.0,0.004]
[1746365491334,1.44773503,95425.0,95424.0,0.004]
[1746365492737,1.67773503,95425.0,95424.0,0.004]
[1746365493237,1.74137503,95425.0,95424.0,0.004]
[1746365494328,1.85937503,95425.0,95424.0,0.004]
[1746365502437,1.62937503,95425.0,95424.0,0.004]
[1746365505341,1.52457903,95425.0,95424.0,0.004]
[1746365505640,1.62937503,95425.0,95424.0,0.004]
[1746365506744,1.52457903,95425.0,95424.0,0.004]
[1746365506938,1.62937503,95425.0,95424.0,0.004]
[1746365507544,1.83937503,95425.0,95424.0,0.004]
[1746365515753,1.73457903,95425.0,95424.0,0.004]
[1746365515954,1.83937503,95425.0,95424.0,0.004]
[1746365519666,1.73457903,95425.0,95424.0,0.004]
[1746365519964,1.83937503,95425.0,95424.0,0.004]
[1746365520165,1.73457903,95425.0,95424.0,0.004]
[1746365524073,0.2096045,95413.0,95412.0,0.00157212]
[1746365524264,0.2096616,95387.0,95373.0,0.32054203]
[1746365524572,0.2096748,95381.0,95380.0,0.0324]
[1746365524767,0.5596748,95381.0,95380.0,0.0324]
[1746365525167,0.9396748,95381.0,95380.0,0.1504]
[1746365525372,1.0033748,95381.0,95380.0,0.1504]
[1746365525874,0.9993748,95381.0,95380.0,0.1504]
[1746365526065,0.6193748,95381.0,95380.0,0.1504]
[1746365526571,0.6163748,95381.0,95380.0,0.1614]
[1746365527068,0.6173748,95381.0,95380.0,0.1724]
[1746365527371,0.8673748,95381.0,95380.0,0.1724]
[1746365527972,0.8673748,95381.0,95380.0,0.1224]
[1746365528170,0.87780261,95381.0,95380.0,0.1224]
[1746365537480,0.2096836,95377.0,95376.0,0.03838654]
[1746365537672,0.9904836,95377.0,95376.0,0.03838654]
[1746365538178,0.9904836,95377.0,95376.0,0.15638654]
[1746365538680,0.9914836,95377.0,95376.0,0.16338654]
[1746365539080,0.9924836,95377.0,95376.0,0.17038654]
[1746365539270,1.0549836,95377.0,95376.0,0.17038654]
[1746365541080,1.0549836,95377.0,95376.0,0.20228654]
[1746365544085,0.6941836,95377.0,95376.0,0.20228654]
[1746365544289,1.4157836,95377.0,95376.0,0.20228654]
[1746365549173,1.4157836,95377.0,95376.0,0.1831]
[1746365550078,1.4157836,95377.0,95376.0,0.1639]
[1746365553180,1.4157836,95377.0,95376.0,0.132]
[1746365558293,0.6941836,95377.0,95376.0,0.132]
[1746365558496,1.4157836,95377.0,95376.0,0.132]
[1746365559395,0.6941836,95377.0,95376.0,0.132]
[1746365559592,1.4157836,95377.0,95376.0,0.132]
[1746365563797,0.6941836,95377.0,95376.0,0.132]
[1746365563996,1.3757836,95377.0,95376.0,0.132]
[1746365564795,1.4057836,95377.0,95376.0,0.132]
[1746365567594,0.6841836,95377.0,95376.0,0.132]
[1746365567793,1.4057836,95377.0,95376.0,0.132]
[1746365569894,0.6841836,95377.0,95376.0,0.132]
[1746365570098,1.4057836,95377.0,95376.0,0.132]
[1746365570393,0.6841836,95377.0,95376.0,0.132]
[1746365570601,1.4057836,95377.0,95376.0,0.132]
[1746365580308,1.4057836,95377.0,95376.0,0.0760349]
[1746365580309,2.0841836,95377.0,95376.0,0.0760349]
[1746365580491,0.2096858,95376.0,95375.0,9e-08]
[1746365580696,1.1396858,95376.0,95375.0,9e-08]
[1746365581006,1.2048858,95376.0,95375.0,9e-08]
[1746365581610,1.2058858,95376.0,95375.0,0.00700009]
[1746365582811,1.2068858,95376.0,95375.0,0.01200009]
[1746365586319,1.6252858,95376.0,95375.0,0.01200009]
[1746365587115,1.6252858,95376.0,95375.0,9e-08]
[1746365591302,1.7252858,95376.0,95375.0,9e-08]
[1746365591512,0.2097276,95357.0,95356.0,0.18649268]
[1746365591816,1.8649276,95357.0,95356.0,0.18649268]
[1746365592211,1.4062276,95357.0,95356.0,0.30449268]
[1746365592713,0.6874276,95357.0,95356.0,0.30449268]
[1746365593310,0.6238276,95357.0,95356.0,0.30449268]
[1746365593516,0.6874276,95357.0,95356.0,0.30449268]
[1746365593817,0.6974276,95357.0,95356.0,0.30449268]
[1746365595511,0.022,95357.0,95356.0,0.86909048]
[1746365595707,0.2117276,95357.0,95356.0,0.6825978]
[1746365595907,0.2117276,95357.0,95356.0,0.7445978]
[1746365598313,0.2117276,95357.0,95356.0,0.4945978]
[1746365598511,0.2117276,95357.0,95356.0,0.7445978]
[1746365598721,0.2117276,95357.0,95356.0,0.7645978]
[1746365599419,0.2117276,95357.0,95356.0,0.7445978]
[1746365599921,0.2117276,95357.0,95356.0,0.4945978]
[1746365602719,0.2117276,95357.0,95356.0,0.5145978]
[1746365615529,0.2117276,95357.0,95356.0,0.4097298]
[1746365615739,0.2117276,95357.0,95356.0,0.5145978]
[1746365617735,0.2117276,95357.0,95356.0,0.4945978]
[1746365618734,0.2117276,95357.0,95356.0,0.5145978]
[1746365620432,0.2424276,95357.0,95356.0,0.5145978]
[1746365622136,0.2424276,95357.0,95356.0,0.4817978]
[1746365623632,0.2424276,95357.0,95356.0,0.4625978]
[1746365623836,0.2748276,95357.0,95356.0,0.4425978]
[1746365624336,0.2748276,95357.0,95356.0,0.6870189]
[1746365627533,0.2748276,95357.0,95356.0,0.69755159]
[1746365627838,0.2748276,95357.0,95356.0,0.6870189]
[1746365628635,0.2096898,95375.0,95374.0,0.2096902]
[1746365628841,0.0524207,95378.0,95377.0,0.2621004]
[1746365628842,0.2096872,95378.0,95377.0,0.2621004]
[1746365629035,0.2096735,95384.0,95383.0,0.2096644]
[1746365629240,0.18823463,95384.0,95383.0,1.8696644]
[1746365629535,0.3608,95388.0,95387.0,0.2096616]
[1746365629841,0.5704594,95388.0,95387.0,0.3596616]
[1746365630340,0.5704594,95388.0,95387.0,0.4776616]
[1746365631339,0.3608,95388.0,95387.0,0.4776616]
[1746365631547,0.3618,95388.0,95387.0,0.4776616]
[1746365631736,0.3921,95388.0,95387.0,0.4776616]
[1746365632143,0.3931,95388.0,95387.0,0.4796616]
[1746365632351,0.3931,95388.0,95387.0,0.48748241]
[1746365632646,0.0323,95388.0,95387.0,0.4796616]
[1746365632846,0.0323,95388.0,95387.0,0.5844976]
[1746365633047,0.0323,95388.0,95387.0,0.4796616]
[1746365633951,0.0631,95388.0,95387.0,0.4796616]
[1746365636749,0.0631,95388.0,95387.0,0.48760207]
[1746365638849,0.0631,95388.0,95387.0,0.59243807]
[1746365640052,0.0631,95388.0,95387.0,0.48760207]
[1746365640649,0.0328,95388.0,95387.0,0.48760207]
[1746365641236,0.0328,95388.0,95387.0,0.50760207]
[1746365641745,0.0328,95388.0,95387.0,0.48760207]
[1746365646054,0.0328,95388.0,95387.0,0.84840207]
[1746365647650,0.0328,95388.0,95387.0,0.63874047]
[1746365647841,0.2424594,95388.0,95387.0,0.27794047]
[1746365648238,0.2424594,95388.0,95387.0,0.36960207]
[1746365651654,0.2424594,95388.0,95387.0,0.21960207]
[1746365651846,0.2424594,95388.0,95385.0,0.0524163]
[1746365652042,0.0305,95387.0,95386.0,0.2096638]
[1746365652448,0.0631,95387.0,95386.0,0.2096638]
[1746365652956,0.0631,95387.0,95386.0,0.3496638]
[1746365653353,0.0631,95387.0,95386.0,0.2096638]
[1746365653959,0.0641,95387.0,95386.0,0.3606638]
[1746365654156,0.0651,95387.0,95386.0,0.3606638]
[1746365654358,0.0651,95387.0,95386.0,0.3506638]
[1746365656258,0.0651,95387.0,95386.0,0.3906638]
[1746365656451,0.0651,95387.0,95386.0,0.4523638]
[1746365657148,0.0651,95387.0,95386.0,0.5703638]
[1746365660761,0.0651,95387.0,95386.0,1.4434203]
[1746365664767,0.0651,95387.0,95386.0,1.48886244]
[1746365667168,0.0651,95387.0,95386.0,1.4434203]
[1746365668068,0.0651,95387.0,95386.0,1.17646667]
[1746365671269,0.0346,95387.0,95386.0,1.17646667]
[1746365671467,0.0304,95394.0,95393.0,0.2096485]
[1746365671668,0.0636,95394.0,95393.0,0.3496485]
[1746365672173,0.0636,95394.0,95393.0,0.4676485]
[1746365672365,0.0636,95394.0,95393.0,0.5304485]
[1746365672563,0.0332,95394.0,95393.0,0.5304485]
[1746365672764,0.0352,95394.0,95393.0,0.5304485]
[1746365673364,0.002,95394.0,95393.0,0.5304485]
[1746365673567,0.0167,95400.0,95399.0,0.2096353]
[1746365674272,0.2263331,95400.0,95399.0,0.2427353]
[1746365674674,0.2263331,95400.0,95399.0,0.2096353]
[1746365674868,0.2283331,95400.0,95399.0,0.2096353]
[1746365676377,0.2303331,95400.0,95399.0,0.2106353]
[1746365676772,0.2608331,95400.0,95399.0,0.2106353]
[1746365679675,0.5108331,95400.0,95399.0,0.001]
[1746365679879,0.4156571,95400.0,95399.0,0.001]
[1746365680081,0.2096485,95393.0,95392.0,0.18756124]
[1746365680274,0.0524164,95386.0,95383.0,0.32054203]
[1746365680471,0.2096682,95384.0,95383.0,0.32054203]
[1746365680673,1.1604682,95384.0,95383.0,0.27064203]
[1746365680872,1.3295082,95384.0,95383.0,0.27064203]
[1746365681071,1.4475082,95384.0,95383.0,0.27064203]
[1746365681774,1.45545495,95384.0,95383.0,0.27064203]
[1746365683482,1.45645495,95384.0,95383.0,0.27064203]
[1746365684584,1.08645495,95384.0,95383.0,0.27064203]
[1746365685184,0.2096814,95378.0,95377.0,0.21509898]
[1746365685377,0.2696814,95378.0,95377.0,0.21509898]
[1746365686077,0.3318814,95378.0,95377.0,0.21509898]
[1746365686484,0.3328814,95378.0,95377.0,0.21509898]
[1746365687290,0.3338814,95378.0,95377.0,0.21509898]
[1746365688083,0.6946814,95378.0,95377.0,0.21509898]
[1746365689688,0.6946814,95378.0,95377.0,0.0015727]
[1746365692492,0.3338814,95378.0,95377.0,0.0015727]
[1746365692694,0.6946814,95378.0,95377.0,0.0015727]
[1746365693580,0.6946814,95378.0,95377.0,0.1615056]
[1746365700992,1.1046814,95378.0,95377.0,0.1615056]
[1746365701193,1.2226814,95378.0,95377.0,0.1615056]
[1746365701394,0.2096836,95377.0,95376.0,1e-08]
[1746365701595,1.1421836,95377.0,95376.0,1e-08]
[1746365701795,1.28013161,95377.0,95376.0,1e-08]
[1746365702301,1.39813161,95377.0,95376.0,1e-08]
[1746365702492,1.39913161,95377.0,95376.0,1e-08]
[1746365703302,1.81753161,95377.0,95376.0,1e-08]
[1746365703498,1.81853161,95377.0,95376.0,1e-08]
[1746365704503,1.81853161,95377.0,95368.0,0.21352628]
[1746365704504,0.2097012,95369.0,95368.0,0.07167309]
[1746365704705,0.2097012,95369.0,95368.0,9e-08]
[1746365704706,1.5450212,95369.0,95368.0,9e-08]
[1746365705196,1.7255772,95369.0,95368.0,9e-08]
[1746365705400,1.8317772,95369.0,95368.0,9e-08]
[1746365705793,1.7904772,95369.0,95368.0,9e-08]
[1746365706102,1.7279212,95369.0,95368.0,9e-08]
[1746365706301,1.6856212,95369.0,95368.0,9e-08]
[1746365706504,1.7279212,95369.0,95368.0,9e-08]
[1746365706704,1.7289212,95369.0,95368.0,9e-08]
[1746365707408,1.7289212,95369.0,95346.0,0.0953]
[1746365707409,0.2097496,95347.0,95346.0,0.0953]
[1746365707595,0.2097496,95347.0,95346.0,0.1053]
[1746365708490,0.2107496,95347.0,95346.0,0.1053]
[1746365709797,0.2117496,95347.0,95346.0,0.1053]
[1746365711001,0.2217496,95347.0,95346.0,0.1053]
[1746365711806,0.2217496,95347.0,95346.0,0.0953]
[1746365712201,0.2217496,95347.0,95346.0,0.2133]
[1746365713707,0.2217496,95347.0,95346.0,0.4230518]
[1746365713901,0.2117496,95347.0,95346.0,0.4230518]
[1746365720505,0.2117496,95347.0,95346.0,0.2133]
[1746365720808,0.2117496,95347.0,95346.0,0.4230518]
[1746365722311,0.2117496,95347.0,95346.0,0.2133]
[1746365723812,0.2117496,95347.0,95346.0,0.4230518]
[1746365725803,0.2117496,95347.0,95346.0,0.2133]
[1746365726210,0.2117496,95347.0,95346.0,0.44673011]
[1746365728407,0.2517496,95347.0,95346.0,0.35143011]
[1746365729107,0.3140496,95347.0,95346.0,0.26583011]
[1746365729603,0.3140496,95347.0,95346.0,0.29813011]
[1746365729810,0.2517496,95347.0,95346.0,0.29813011]
[1746365730006,0.2117496,95347.0,95346.0,0.50788191]
[1746365730206,0.2117496,95347.0,95346.0,0.62588191]
[1746365730408,0.2117496,95347.0,95346.0,0.63588191]
[1746365730611,0.2117496,95347.0,95346.0,0.62588191]
[1746365731413,0.2117496,95347.0,95346.0,0.67132254]
[1746365731816,0.2117496,95347.0,95346.0,0.62588191]
[1746365732618,0.2117496,95347.0,95346.0,0.67132942]
[1746365733319,0.002,95347.0,95346.0,0.67132942]
[1746365733529,0.0524354,95351.0,95350.0,0.2621712]
[1746365733822,0.0524354,95351.0,95350.0,0.30761871]
[1746365734005,0.0524354,95351.0,95350.0,0.46761871]
[1746365734210,0.0524354,95351.0,95350.0,0.58561871]
[1746365734606,0.2621805,95351.0,95350.0,0.58561871]
[1746365734810,0.2631805,95351.0,95350.0,0.58561871]
[1746365735619,0.2641805,95351.0,95350.0,0.58561871]
[1746365736820,0.0524282,95364.0,95359.0,0.2621437]
[1746365737124,0.2097179,95363.0,95362.0,0.5705144]
[1746365737618,0.26371485,95367.0,95366.0,0.2097078]
[1746365737824,0.21128795,95367.0,95366.0,0.2097078]
[1746365738215,0.24418795,95367.0,95366.0,0.3277078]
[1746365739321,0.24518795,95367.0,95366.0,0.3287078]
[1746365740009,0.24618795,95367.0,95366.0,0.4707078]
[1746365740214,0.24618795,95367.0,95366.0,0.3307078]
[1746365743724,0.27708795,95367.0,95366.0,0.3307078]
[1746365752438,0.27708795,95367.0,95366.0,0.3608078]
[1746365753835,0.27708795,95367.0,95366.0,0.121]
[1746365754023,0.30868795,95367.0,95366.0,0.121]
[1746365754225,0.30868795,95367.0,95366.0,0.3307078]
[1746365756726,0.30868795,95367.0,95366.0,0.121]
[1746365757337,0.30868795,95367.0,95366.0,0.3307078]
[1746365758338,0.30868795,95367.0,95366.0,0.121]
[1746365758735,0.30868795,95367.0,95366.0,0.3307078]
[1746365759438,0.36868795,95367.0,95366.0,0.3307078]
[1746365759740,0.30868795,95367.0,95366.0,0.3307078]
[1746365760337,0.30868795,95367.0,95366.0,0.121]
[1746365761226,0.35868795,95367.0,95366.0,0.121]
[1746365761436,0.41868795,95367.0,95366.0,0.121]
[1746365762232,0.53668795,95367.0,95366.0,0.003]
[1746365762638,1.11748795,95367.0,95366.0,0.003]
[1746365762830,1.22234795,95367.0,95366.0,0.003]
[1746365763840,1.36234795,95367.0,95366.0,0.003]
[1746365764842,1.14234795,95367.0,95366.0,0.003]
[1746365770945,1.07234795,95367.0,95366.0,0.003]
[1746365771149,1.09234795,95367.0,95366.0,0.003]
[1746365772146,0.97434795,95367.0,95366.0,0.003]
[1746365773152,1.09234795,95367.0,95366.0,0.003]
[1746365774056,0.98748795,95367.0,95366.0,0.003]
[1746365775257,0.86948795,95367.0,95366.0,0.003]
[1746365778557,0.81788795,95367.0,95366.0,0.003]
[1746365778952,0.78698795,95367.0,95366.0,0.003]
[1746365779352,0.81788795,95367.0,95366.0,0.003]
[1746365779655,0.82788795,95367.0,95366.0,0.003]
[1746365780760,0.81788795,95367.0,95366.0,0.003]
[1746365782447,0.83788795,95367.0,95366.0,0.003]
[1746365782659,0.86988795,95367.0,95366.0,0.003]
[1746365783363,0.83788795,95367.0,95366.0,0.003]
[1746365787768,0.83788795,95367.0,95366.0,0.0635]
[1746365788566,0.83788795,95367.0,95366.0,0.27727409]
[1746365788959,0.80698795,95367.0,95366.0,0.27727409]
[1746365789363,0.77408795,95367.0,95366.0,0.27727409]
[1746365789866,0.80668795,95367.0,95366.0,0.27727409]
[1746365790568,0.78668795,95367.0,95366.0,0.27727409]
[1746365792871,0.60668795,95367.0,95366.0,0.0635]
[1746365794264,0.21328795,95367.0,95366.0,0.0635]
[1746365794470,0.21328795,95367.0,95366.0,0.2732078]
[1746365794767,0.21328795,95367.0,95366.0,0.0635]
[1746365795075,0.21328795,95367.0,95366.0,0.1815]
[1746365796369,0.0524222,95375.0,95369.0,0.0524247]
[1746365796669,0.0524222,95375.0,95374.0,0.2096858]
[1746365796670,0.2096891,95375.0,95374.0,0.2096858]
[1746365796861,0.2096891,95375.0,95374.0,0.3396858]
[1746365797260,0.2096891,95375.0,95374.0,0.4576858]
[1746365797559,0.2096891,95375.0,95374.0,0.5215858]
[1746365798670,0.2106891,95375.0,95374.0,0.5215858]
[1746365798870,0.2116891,95375.0,95374.0,0.5235858]
[1746365799381,0.2116891,95375.0,95374.0,0.3139]
[1746365799558,0.2116891,95375.0,95374.0,0.1869]
[1746365799760,0.2116891,95375.0,95374.0,0.3965858]
[1746365799971,0.2116891,95375.0,95374.0,0.4265858]
[1746365801471,0.2116891,95375.0,95374.0,0.7873858]
[1746365809378,0.2116891,95375.0,95374.0,0.9708525]